Cogmind - Beta 13 @@@ ROGUE MODE // 2024.04.05 @ 15:36:27 Player: Iris Result: Destroyed by G-34 Mercenary with Small Laser Performance ------------- Evolutions (1) 500 Regions Visited (2) 400 Robots Destroyed (16) 80 Value Destroyed (291) 291 Prototype IDs (0) 0 Alien Tech Used (0) 0 Bonus (0) 0 TOTAL SCORE: 1271 Bonus ------- None Cogmind --------- Core Integrity 0/400 Matter 300/300 Energy 30/100 System Corruption 0% Temperature Cool (18) Movement Core (50) Location -9/Materials Parts ------- > --- POWER (1) -------- (None) > --- PROPULSION (2) --- (None) > --- UTILITY (4) ------ Signal Interpreter > --- WEAPON (2) ------- Hammer > --- INVENTORY (5) ---- Ion Engine Light Ion Engine Assault Rifle Datajack Mining Laser Peak State ------------ > --- POWER ------------ Ion Engine > --- PROPULSION ------- Aluminum Leg Aluminum Leg > --- UTILITY ---------- Signal Interpreter Seismic Detector ECM Suite > --- WEAPON ----------- Particle Gun Hammer > --- INVENTORY -------- Ion Engine Light Ion Engine Assault Rifle Datajack Mining Laser [Rating: 9] Favorites ----------- Power Ion Engine Engine Ion Engine Propulsion Aluminum Leg Leg Aluminum Leg Utility Seismic Detector Device Seismic Detector Storage Medium Storage Unit Processor Signal Interpreter Weapon Light Assault Rifle Energy Gun Particle Gun Ballistic Gun Light Assault Rifle Impact Weapon Hammer Special Melee Weapon Datajack Build | -11 -10 -9 ------- Run | Yrd Mat Mat Slots Evolved 2 | . . 2 Power . | . . . Propulsion . | . . . Utility 2 | . . 2 Weapon . | . . . Parts Attached 19 | 7 10 2 Power 2 | 1 1 . Engine 2 | 1 1 . Core . | . . . Reactor . | . . . Propulsion 3 | 2 1 . Treads . | . . . Leg 3 | 2 1 . Wheel . | . . . Hover . | . . . Flight . | . . . Utility 6 | 1 4 1 Device 3 | . 2 1 Storage 2 | 1 1 . Processor 1 | . 1 . Hackware . | . . . Protection . | . . . Artifact . | . . . Weapon 8 | 3 4 1 Energy Gun 2 | 1 . 1 Energy Cannon . | . . . Ballistic Gun 3 | 2 1 . Ballistic Cannon . | . . . Launcher . | . . . Special Weapon . | . . . Impact Weapon 2 | . 2 . Slashing Weapon . | . . . Piercing Weapon . | . . . Special Melee Weapon 1 | . 1 . Unidentified Prototypes . | . . . Parts Lost 6 | . . 6 Power 1 | . . 1 Propulsion 2 | . . 2 Utility 2 | . . 2 Weapon 1 | . . 1 Highest Loss Streak 6 | . . 6 To Critical Strikes . | . . . Average Slot Usage (%) 96 | . 99 80 Engine 13 | . 14 9 Leg 26 | . 28 19 Device 19 | . 18 19 Storage 7 | . 8 . Processor 1 | . . 11 Energy Gun 1 | . . 10 Ballistic Gun 18 | . 21 . Impact Weapon 6 | . 5 11 Special Melee Weapon 1 | . 1 . Naked Turns . | . . . Heaviest Build 20 | 12 20 13 Greatest Support 20 | 20 20 20 Greatest Overweight (x) 1 | 1 . . Average Overweight (x) . | . . . Largest Inventory Capacity 10 | 8 10 5 Average Capacity 7 | 5 7 5 Most Carried 8 | 1 8 5 Average Carried 4 | . 4 4 Final Capacity 8 | 8 5 5 Final Carried 5 | 1 5 5 Class Distribution -------------------- 100% | Mutant Dominant Class ---------------- Mutant | -10/Materials Mutant | -9/Materials Resources | -11 -10 -9 ----------- Run | Yrd Mat Mat Matter Collected 492 | 246 226 20 Remotely . | . . . Salvage Created 438 | . 404 34 Parts 32 | . 32 . Haulers Intercepted 1 | . 1 . Recyclers Shooed . | . . . Parts Field Recycled . | . . . Retrieved Matter . | . . . Parts Self-Destructed . | . . . Prevented . | . . . Kills | -11 -10 -9 ------- Run | Yrd Mat Mat Combat Hostiles Destroyed 10 | . 9 1 Guns 9 | . 9 . Classes Destroyed 9 | . 8 1 Worker 1 | . 1 . Builder 1 | . 1 . Tunneler 1 | . 1 . Hauler 1 | . 1 . Operator 1 | . 1 . Watcher 1 | . 1 . Swarmer 5 | . 5 . Grunt 4 | . 4 . Sentry 1 | . . 1 Best Kill Streak 4 | . 4 1 Combat Bots Only 4 | . 4 1 Max Kills in Single Turn 2 | . 2 1 Gunslinging 1 | . 1 . Exploded . | . . . Melee . | . . . Uniques/NPCs Destroyed . | . . . Combat | -11 -10 -9 -------- Run | Yrd Mat Mat Hostile Shots Fired 150 | . 67 83 Missed 45 | . 24 21 Damage Taken 1180 | . 417 763 Core 517 | . 108 409 Absorbed by Shields . | . . . Core Remaining (%) 78 | 100 56 . Volleys Fired 46 | . 46 . Largest 2 | . 2 . Hottest 40 | . 40 . Shots Fired 77 | . 77 . Gun 77 | . 77 . Cannon . | . . . Launcher . | . . . Special . | . . . Kinetic 77 | . 77 . Thermal . | . . . Explosive . | . . . Electromagnetic . | . . . Robot Hit Streak 6 | . 6 . Robot Miss Streak 7 | . 7 . Penetration Max . | . . . Secondary Targets 1 | . 1 . Max Gunslinging Chain 1 | . 1 . Shots Hit Robots 65 | . 49 16 Core Hits 24 | . 23 1 Critical Kills 1 | . 1 . Critical Parts Destroyed 2 | . . 2 Critical Strikes 5 | . 1 4 Smash 5 | . 1 4 Melee Attacks 29 | . 9 20 Impact 28 | . 8 20 Slashing . | . . . Piercing . | . . . Sneak Attacks 4 | . 4 . Combat Hostiles . | . . . Follow-up Attacks . | . . . Damage Inflicted 945 | . 664 281 Guns 426 | . 426 . Cannons . | . . . Explosions . | . . . Melee 512 | . 231 281 Ramming 7 | . 7 . Kinetic 426 | . 426 . Thermal . | . . . Explosive . | . . . Electromagnetic . | . . . Impact 512 | . 231 281 Slashing . | . . . Piercing . | . . . Highest Corruption . | . . . Average Corruption . | . . . Corruption Purged . | . . . Corruption Blocked . | . . . Overload Shots . | . . . Overflow Damage 84 | . 54 30 Projectiles . | . . . Explosions . | . . . Melee 84 | . 54 30 Knockbacks . | . . . Impact . | . . . Kinetic . | . . . Secondary . | . . . Self-Inflicted Damage . | . . . Shots . | . . . Rammed . | . . . Targets Rammed 2 | . 2 . Kicked 2 | . 2 . Crushed . | . . . Highest Temperature 24 | . 24 . Average Temperature 8 | . 8 . Received Heat Transfer 453 | . 129 324 Siege Activations . | . . . Robots Corrupted . | . . . Combat Hostiles . | . . . Parts Fried 4 | . 3 1 Impact Corruptions 6 | . 3 3 Robots Melted . | . . . Combat Hostiles . | . . . Parts Melted . | . . . Heat Transferred . | . . . Parts Sabotaged . | . . . Parts Stolen . | . . . Parts Stripped . | . . . Power Chain Reactions . | . . . Alert | -11 -10 -9 ------- Run | Yrd Mat Mat Peak Influence 260 | . 260 51 Initial 29 | . . 29 Average 82 | . 97 29 Maximum Alert Level 1 | . 1 . Low Security (%) 89 | 100 86 100 Level 1 10 | . 13 . Level 2 . | . . . Level 3 . | . . . Level 4 . | . . . Level 5 . | . . . High Security . | . . . Max Security . | . . . Squads Dispatched 4 | . 2 2 Investigation 1 | . 1 . Extermination . | . . . Reinforcement 3 | . 1 2 Assault . | . . . Garrison . | . . . Intercept . | . . . Searches Triggered . | . . . Construction Impeded . | . . . Haulers Reinforced . | . . . Active Scanning Responses . | . . . Cargo Convoy Interrupts . | . . . Stealth | -11 -10 -9 --------- Run | Yrd Mat Mat Distress Signals 1 | . 1 . Communications Jammed . | . . . Distress Signals . | . . . Times Spotted 38 | . 31 7 Peak Tracking Total 6 | . 6 5 Tactical Retreats 4 | . 3 1 Traps | -11 -10 -9 ------- Run | Yrd Mat Mat Traps Triggered . | . . . Indirectly . | . . . Trap Hack Attempts . | . . . Triggered . | . . . Disarmed 6 | . 6 . Reprogrammed . | . . . Reused . | . . . Traps Extracted . | . . . Installed . | . . . Triggered . | . . . Machines | -11 -10 -9 ---------- Run | Yrd Mat Mat Machines Disabled . | . . . Max in Single Turn . | . . . Machines Repaired . | . . . Machines Dismantled . | . . . Machines Sabotaged . | . . . Overloaded Fab Kills . | . . . Hacking | -11 -10 -9 --------- Run | Yrd Mat Mat Machines Accessed 8 | . 6 2 Terminals 7 | . 6 1 Fabricators . | . . . Repair Stations . | . . . Recycling Units . | . . . Scanalyzers 1 | . . 1 Garrison Access . | . . . Total Hacks 32 | . 19 13 Successful 17 | . 8 9 Failed 15 | . 11 4 Catastrophic . | . . . Database Lockouts . | . . . Manual 11 | . 11 . Terminals 23 | . 19 4 Fabricators . | . . . Repair Stations . | . . . Recycling Units . | . . . Scanalyzers 9 | . . 9 Garrison Access . | . . . Terminal Hacks 9 | . 8 1 Branch Access Points 2 | . 1 1 Emergency Access Points 1 | . 1 . Alert Level 1 | . 1 . Locate Traps 1 | . 1 . Disarm Traps 1 | . 1 . Transport Status 1 | . 1 . Hauler Manifests 1 | . 1 . Zone Layout 1 | . 1 . Fabricator Hacks . | . . . Repair Station Hacks . | . . . Recycling Unit Hacks . | . . . Scanalyzer 8 | . . 8 Insert Component 3 | . . 3 Analyze 5 | . . 5 Garrison Access Hacks . | . . . Unauthorized Hacks . | . . . Terminals . | . . . Fabricators . | . . . Repair Stations . | . . . Recycling Units . | . . . Scanalyzers . | . . . Garrison Access . | . . . Data Cores Recovered . | . . . Used . | . . . Hacking Detections 6 | . 4 2 Full Trace Events 5 | . 4 1 Feedback Events . | . . . Feedback Blocked . | . . . Robot Schematics Acquired . | . . . Robots Built . | . . . Authchips . | . . . Time . | . . . Total Robot Build Rating . | . . . Part Schematics Acquired 3 | . . 3 Parts Built . | . . . Authchips . | . . . Time . | . . . Total Part Build Rating . | . . . Parts Repaired . | . . . Time . | . . . Parts Recycled . | . . . Recycled Matter . | . . . Retrieved Matter . | . . . Retrieved Components . | . . . Parts Scanalyzed 3 | . . 3 Part Schematics Acquired 3 | . . 3 Parts Damaged . | . . . Bothacking | -11 -10 -9 ------------ Run | Yrd Mat Mat Used RIF Installer . | . . . Robots Hacked 1 | . 1 . Non-combat 1 | . 1 . Combat . | . . . Robot Hacks Applied 1 | . 1 . no_distress 1 | . 1 . Relay Couplers Released . | . . . Fabnet Peak Effective % . | . . . Robots Rewired . | . . . Allies Hacked . | . . . Hacks Repelled . | . . . Allies | -11 -10 -9 -------- Run | Yrd Mat Mat Total Allies . | . . . Largest Group . | . . . Highest-Rated Group . | . . . Highest-Rated Ally . | . . . Total Orders . | . . . Ally Attacks . | . . . Total Damage . | . . . Kills . | . . . Allies Corrupted . | . . . Allies Melted . | . . . Intel | -11 -10 -9 ------- Run | Yrd Mat Mat Robot Analysis Total . | . . . Derelict Logs Recovered . | . . . Drone Launches . | . . . Drone Recoveries . | . . . Exploration | -11 -10 -9 ------------- Run | Yrd Mat Mat Turns Passed 1665 | 89 1355 221 Spaces Moved 1179 | 71 983 125 Core 11 | 11 . . Treads . | . . . Legs 1168 | 60 983 125 Wheels . | . . . Hover . | . . . Flight . | . . . Fastest Speed 50 | 50 120 120 Average Speed 119 | 111 120 120 Slowest Speed 120 | 120 120 120 Overloaded Moves . | . . . Propulsion Burnouts . | . . . Robots Hopped . | . . . Cave-ins Triggered . | . . . Exploration Rate (%) 38 | 5 96 15 Regions Visited 2 Branch Regions . Pre-discovered Areas . | . . . Known Exits Taken 1 | . 1 . Unknown Exits Taken 1 | 1 . . Scrap Searched . | . . . Spaces Dug . | . . . Terrain Destroyed . | . . . Melee . | . . . Projectile . | . . . AOE . | . . . Terrain Rammed . | . . . Walls Destroyed . | . . . Machines Disabled . | . . . Actions | -11 -10 -9 --------- Run | Yrd Mat Mat Total 1320 | 78 1081 161 Wait 28 | . 15 13 Move 1177 | 70 982 125 Hop . | . . . Pick Up 3 | . 3 . Fast Attach 17 | 7 9 1 Attach 2 | . 1 1 Detach 9 | 1 7 1 Swap . | . . . Drop 7 | . 7 . Fire 46 | . 46 . Melee 29 | . 9 20 Ram . | . . . Kick 2 | . 2 . Crush . | . . . Escape Stasis . | . . . Rewire . | . . . Trap . | . . . Miscellaneous . | . . . Route ------- -11/Scrapyard -10/Materials (discovered 5 exits: *Mat x3 / *Min x2) -9/Materials (discovered 1 exit: Min) History --------- Turn | Location | Event 11 | -11/Scrapyard | Discovered new exit (range 15) 90 | -11/Scrapyard | Entered Materials 160 | -10/Materials | Identified exit to Mines 302 | -10/Materials | Build established: Mutant 424 | -10/Materials | Discovered new exit (range 4) 635 | -10/Materials | Discovered new exit (range 6) 847 | -10/Materials | Discovered new exit (range 8) 1440 | -10/Materials | Identified exit to Materials 1445 | -10/Materials | Entered another Materials area 1445 | -9/Materials | Evolved 2 slots: Utility x2 1570 | -9/Materials | Identified exit to Mines 1651 | -9/Materials | Core integrity fell below 50% 1661 | -9/Materials | Core integrity fell below 20% 1666 | -9/Materials | Destroyed by G-34 Mercenary with Small Laser Last Messages --------------- 01634_ Y-45 Defender misfires. 01635_ Aluminum Leg destroyed. 01639_ Y-45 Defender suffers critical hit (Smash). 01643_ Y-45 Defender misfires. 01650_ Y-45 Defender suffers critical hit (Smash). 01652_ Particle Gun destroyed. 01661_ Y-45 Defender heat damages core (-6). 01664_ ECM Suite destroyed. 01664_ Y-45 Defender suffers critical hit (Smash). 01664_ Destroyed Heat Sink. 01664_ Destroyed Lgt. Armor Plating. 01664_ Y-45 Defender system corrupted by crushing effect. 01665_ Y-45 Defender heat damages Lgt. Treads. 01665_ Y-45 Defender system terminally corrupted. 01665_ Beam Rifle fried. Map ----- +----------------------------------------------------+ | # "" ##### """ #??# """ #????????????? | | # """ # # """ #??# """ #????????????? | | # ][[ S" # # % #??# """ #????????????? | | # [[[ # # ] #??# #????????????? | | # [[ + + #??# #????????????? | | # # ###########??# "Y" #????????????? | | # ]# #????????????# """ #????????????? | | ########### ##???????????# #????????????? | | ?????????# #################+####????????????? | | ?????????# #????????????? | | ?????????# #????????????? | | ?????????# #?######?????? | | ?????????# ################## #? #?????? | | ?????????#######????????????????# # """ #?????? | | ????????????????????????????????# # """ #?????? | | ???????????????????############## + """ #?????? | | ??????????????????? # """ #?????? | | ?????????????????? # #?????? | | ?????????????????? #?######?????? | | ?????????????????????##### !!##########?????? | | ?????????????????????????# !!# T #?????? | | ???????????############### # #?????? | | ??????????? # """ #?????? | | ?????????? g # """""#?????? | | ?????????? g g + """""#?????? | | ??????????????""" @ g u# """""#?????? | | ???????????????""""" ##+#### r# """ #?????? | | ????????????????""" ?? % #?# # #?????? | | ?????????????? ? ???]]/#?# # #?????? | | ????????????? ??????#]/!#?# ##########?????? | | ???????????? [[????????#]/!#?# #??????????????? | | ???????????? ??????????# #? ??????????????? | | ????????????????????????# ## #?????????????? | | ????????????????????????# !## T #?????????????? | | ????????????????????????# #### #?????????????? | | ????????????????????????##???# #?????????????? | | ?????????????????????????????### ###?????????????? | | ???????????????????????????????? ????????????????? | | ?????????????????????????????????????????????????? | | ?????????????????????????????????????????????????? | | ????????????????>????????????????????????????????? | | ?????????????????????????????????????????????????? | | ?????????????????????????????????????????????????? | | ?????????????????????????????????????????????????? | | ?????????????????????????????????????????????????? | | ?????????????????????????????????????????????????? | | ?????????????????????????????????????????????????? | | ?????????????????????????????????????????????????? | | ?????????????????????????????????????????????????? | | ?????????????????????????????????????????????????? | +----------------------------------------------------+ Best States ------------- Heat Dissipation 28 Energy Generation 10 Energy Capacity 250 Matter Stores 300 Matter Capacity 300 Sight Range 16 Terrain Scan Density 10 ECM Strength 1 Evasion (%) 55 Item Schematics ----------------- Datajack | -9/Materials | Scanalyzed Ion Engine | -9/Materials | Scanalyzed Mining Laser | -9/Materials | Scanalyzed Robot Schematics ------------------ None Fabricated ------------ Nothing Alien Tech Used ----------------- None Achievements -------------- None Challenges ------------ None Game ------ Seed CargoSkeletonEngine Manual? 0 Play Time 00:13:17 Cumulative 8.0 hours Start 2024.04.05 @ 15:25:15 End 2024.04.05 @ 15:36:27 Sessions 1 Manual Loads 0 Difficulty Rogue Special Mode None Game No. 25 Rogue 25 Adventurer 0 Explorer 0 Win Type - Total 0 Types 0/0/0/0/0/0/0/0/0 Lore% 12 Gallery% 16 Achievement% 16 Wizard Run 0 Options --------- Layout 2 ASCII 0 Keyboard 1 Movement Arrows Keybinds 0 Fullscreen 2 Font 32/SmallcapsGlow Map View 50x44 Zoom Use 0% Tactical HUD 1 Map Filters NONE Filters NONE Steam 1 RUN: e1d69319-8f2c-4a87-aaa2-513033a3e4b1